[Event "FIDE World Cup 2013"]
[Site "TromsÃ¸"]
[Date "2013.08.13"]
[Round "1.6"]
[White "Felgaer, Ruben"]
[Black "Riazantsev, Alexander"]
[Result "1/2-1/2"]
[ECO "B12"]
[WhiteElo "2586"]
[BlackElo "2708"]
[PlyCount "123"]
[EventDate "2013.??.??"]
[EventCountry "NOR"]
[TimeControl "600+10"]

1. e4 {[%emt 0:00:00]} c6 {[%emt 0:00:00]} 2. d4 d5 3. Nd2 {[%emt 0:00:00]} g6
{[%emt 0:00:38]} 4. Ngf3 {[%emt 0:00:49]} Bg7 {[%emt 0:00:01]} 5. c3 {[%emt 0:
00:01]} Bg4 {[%emt 0:00:12]} 6. h3 {[%emt 0:00:18]} Bxf3 {[%emt 0:00:01]} 7.
Qxf3 {[%emt 0:01:24]} e6 {[%emt 0:00:01]} 8. Bd3 {[%emt 0:00:06]} Ne7 {[%emt 0:
00:05]} 9. O-O {[%emt 0:00:14]} O-O {[%emt 0:00:02]} 10. Re1 {[%emt 0:00:11]}
Nd7 {[%emt 0:00:00]} 11. Qg3 {[%emt 0:00:10]} c5 {[%emt 0:00:53]} 12. exd5 {
[%emt 0:01:09]} Nxd5 {[%emt 0:00:01]} 13. dxc5 {[%emt 0:00:11]} Nxc5 {[%emt 0:
00:01]} 14. Bc2 {[%emt 0:00:01]} Nf6 {[%emt 0:01:50]} 15. Nb3 {[%emt 0:00:11]}
Nxb3 {[%emt 0:00:17]} 16. Bxb3 {[%emt 0:00:05]} Qa5 {[%emt 0:00:46]} 17. Qg5 {
[%emt 0:00:22]} Qa6 {[%emt 0:00:37]} 18. Be3 {[%emt 0:00:15]} b5 {[%emt 0:01:
25]} 19. Rad1 {[%emt 0:00:12]} Qb7 {[%emt 0:00:06]} 20. Qh4 {[%emt 0:00:55]}
Rfe8 {[%emt 0:01:44]} 21. Bg5 {[%emt 0:00:27]} Nd7 {[%emt 0:00:00]} 22. Qe4 {
[%emt 0:00:55]} Qxe4 {[%emt 0:00:14]} 23. Rxe4 {[%emt 0:00:01]} Nc5 {[%emt 0:
00:01]} 24. Re2 {[%emt 0:00:25]} a5 {[%emt 0:00:00]} 25. Be3 {[%emt 0:00:09]}
Nxb3 {[%emt 0:01:05]} 26. axb3 a4 27. bxa4 {[%emt 0:00:12]} bxa4 {[%emt 0:00:
01]} 28. Bd4 {[%emt 0:00:28]} Red8 {[%emt 0:01:30]} 29. Red2 {[%emt 0:00:09]}
e5 {[%emt 0:01:03]} 30. Bc5 {[%emt 0:00:06]} Rdc8 {[%emt 0:00:03]} 31. Ba3 {
[%emt 0:00:05]} h5 {[%emt 0:00:18]} 32. Rd7 {[%emt 0:00:03]} g5 {[%emt 0:00:33]
} 33. Kf1 {[%emt 0:00:07]} Rc4 {[%emt 0:00:26]} 34. Rd8+ {[%emt 0:00:28]} Rxd8
{[%emt 0:00:01]} 35. Rxd8+ {[%emt 0:00:01]} Kh7 {[%emt 0:00:00]} 36. Rb8 {
[%emt 0:00:01]} e4 {[%emt 0:00:14]} 37. g4 {[%emt 0:01:20]} Be5 {[%emt 0:00:25]
} 38. Rb7 {[%emt 0:00:43]} Bc7 {[%emt 0:00:33]} 39. Ke2 {[%emt 0:00:19]} Kg6 {
[%emt 0:00:01]} 40. Rb5 {[%emt 0:00:26]} f6 {[%emt 0:00:10]} 41. Rd5 {[%emt 0:
00:49]} Be5 {[%emt 0:00:06]} 42. Rb5 {[%emt 0:00:05]} h4 {[%emt 0:00:11]} 43.
Ra5 {[%emt 0:00:19]} Bf4 {[%emt 0:00:17]} 44. Rb5 {[%emt 0:00:04]} Bc7 {[%emt
0:00:21]} 45. Rd5 {[%emt 0:00:04]} Be5 {[%emt 0:00:05]} 46. Rb5 {[%emt 0:00:01]
} Bxc3 {[%emt 0:00:09]} 47. bxc3 {[%emt 0:00:14]} Rxc3 {[%emt 0:00:00]} 48. Bb2
{[%emt 0:00:49]} Rxh3 {[%emt 0:00:46]} 49. Rf5 {[%emt 0:00:00]} Rf3 {[%emt 0:
00:28]} 50. Rxf3 {[%emt 0:00:33]} exf3+ {[%emt 0:00:00]} 51. Kxf3 {[%emt 0:00:
01]} f5 {[%emt 0:00:01]} 52. gxf5+ {[%emt 0:01:21]} Kxf5 {[%emt 0:00:01]} 53.
Ba3 {[%emt 0:00:08]} g4+ {[%emt 0:00:01]} 54. Kg2 {[%emt 0:00:00]} Ke4 {[%emt
0:00:23]} 55. Be7 {[%emt 0:00:08]} h3+ {[%emt 0:00:03]} 56. Kg3 {[%emt 0:00:03]
} Kd3 57. Bd6 {[%emt 0:00:20]} Ke2 {[%emt 0:00:56]} 58. Kxg4 {[%emt 0:00:03]}
a3 {[%emt 0:00:05]} 59. Kxh3 {[%emt 0:00:02]} a2 {[%emt 0:00:01]} 60. Be5 {
[%emt 0:00:00]} Kxf2 {[%emt 0:00:01]} 61. Kg4 {[%emt 0:00:02]} a1=Q {[%emt 0:
00:02]} 62. Bxa1 {[%emt 0:00:01]} 1/2-1/2

[Event "FIDE World Cup 2013"]
[Site "TromsÃ¸"]
[Date "2013.08.13"]
[Round "1.6"]
[White "Granda Zuniga, Julio E"]
[Black "Melkumyan, Hrant"]
[Result "1/2-1/2"]
[ECO "A45"]
[WhiteElo "2679"]
[BlackElo "2632"]
[PlyCount "117"]
[EventDate "2013.??.??"]
[EventCountry "NOR"]
[TimeControl "600+10"]

1. d4 {[%emt 0:00:00]} Nf6 {[%emt 0:00:00]} 2. Bf4 {[%emt 0:00:00]} g6 {[%emt
0:00:00]} 3. Nd2 {[%emt 0:00:00]} Bg7 {[%emt 0:00:00]} 4. e4 {[%emt 0:00:00]}
O-O {[%emt 0:00:00]} 5. e5 {[%emt 0:00:27]} Nd5 {[%emt 0:00:00]} 6. Bg3 {[%emt
0:00:02]} d6 {[%emt 0:00:01]} 7. Ngf3 {[%emt 0:00:13]} Nc6 {[%emt 0:00:02]} 8.
Bc4 {[%emt 0:00:10]} dxe5 {[%emt 0:00:02]} 9. dxe5 {[%emt 0:00:01]} Nb6 {[%emt
0:00:10]} 10. Bb3 {[%emt 0:00:14]} a5 {[%emt 0:00:22]} 11. a4 {[%emt 0:02:29]}
Nd4 {[%emt 0:01:13]} 12. Nxd4 {[%emt 0:00:20]} Qxd4 {[%emt 0:00:02]} 13. c3 {
[%emt 0:00:01]} Qd3 {[%emt 0:01:33]} 14. Qf3 {[%emt 0:00:29]} Bf5 {[%emt 0:00:
23]} 15. e6 {[%emt 0:01:52]} fxe6 {[%emt 0:01:04]} 16. Bxe6+ {[%emt 0:00:27]}
Kh8 {[%emt 0:00:01]} 17. Qxd3 {[%emt 0:00:04]} Bxd3 {[%emt 0:00:01]} 18. Bxc7 {
[%emt 0:00:11]} Rf6 {[%emt 0:00:28]} 19. Bb3 {[%emt 0:00:03]} Rc8 {[%emt 0:00:
21]} 20. Be5 {[%emt 0:01:13]} Rf5 {[%emt 0:00:01]} 21. Bxg7+ {[%emt 0:00:29]}
Kxg7 {[%emt 0:00:01]} 22. Nf3 {[%emt 0:00:12]} Bc4 {[%emt 0:01:07]} 23. Bc2 {
[%emt 0:00:09]} Rd5 {[%emt 0:01:47]} 24. Rd1 {[%emt 0:00:32]} Rcd8 {[%emt 0:00:
50]} 25. Rxd5 {[%emt 0:00:35]} Bxd5 {[%emt 0:00:01]} 26. Ke2 {[%emt 0:01:10]}
Bc4+ {[%emt 0:01:08]} 27. Ke3 {[%emt 0:00:01]} Nd5+ {[%emt 0:00:03]} 28. Ke4 {
[%emt 0:00:01]} Nf6+ {[%emt 0:01:19]} 29. Kf4 {[%emt 0:00:06]} Nd5+ {[%emt 0:
00:13]} 30. Kg3 {[%emt 0:00:19]} Nf6 {[%emt 0:00:01]} 31. Re1 {[%emt 0:00:34]}
Nh5+ {[%emt 0:00:24]} 32. Kg4 {[%emt 0:00:23]} Nf6+ {[%emt 0:00:42]} 33. Kf4 {
[%emt 0:00:23]} Kf8 {[%emt 0:00:27]} 34. Nd4 {[%emt 0:00:36]} Rd6 {[%emt 0:00:
18]} 35. g4 {[%emt 0:00:33]} b6 {[%emt 0:00:07]} 36. Kg3 {[%emt 0:00:06]} Nd7 {
[%emt 0:00:12]} 37. f4 {[%emt 0:00:02]} Nc5 {[%emt 0:00:02]} 38. Re3 {[%emt 0:
00:05]} Bf7 {[%emt 0:00:09]} 39. f5 {[%emt 0:00:29]} Be8 {[%emt 0:00:09]} 40.
b3 {[%emt 0:00:03]} Bf7 {[%emt 0:00:05]} 41. Kf4 {[%emt 0:00:10]} Nd7 {[%emt 0:
00:09]} 42. g5 {[%emt 0:00:15]} gxf5 {[%emt 0:00:10]} 43. Nxf5 {[%emt 0:00:05]}
e5+ {[%emt 0:00:24]} 44. Kg3 {[%emt 0:00:20]} Rd2 {[%emt 0:00:02]} 45. Nh6 {
[%emt 0:00:12]} Bd5 {[%emt 0:00:26]} 46. Bf5 {[%emt 0:00:43]} Bc6 {[%emt 0:00:
30]} 47. h4 {[%emt 0:00:13]} Nc5 {[%emt 0:00:12]} 48. Bxh7 {[%emt 0:00:10]}
Rg2+ {[%emt 0:00:01]} 49. Kh3 {[%emt 0:00:01]} Ne6 {[%emt 0:00:01]} 50. Rg3 {
[%emt 0:00:11]} Rf2 {[%emt 0:00:36]} 51. h5 {[%emt 0:00:39]} e4 {[%emt 0:00:43]
} 52. Nf5 {[%emt 0:00:15]} Bd7 {[%emt 0:00:11]} 53. h6 {[%emt 0:00:14]} e3 {
[%emt 0:00:17]} 54. g6 {[%emt 0:00:01]} Nf4+ {[%emt 0:00:15]} 55. Kg4 {[%emt 0:
00:05]} Bxf5+ {[%emt 0:00:11]} 56. Kxf5 {[%emt 0:00:01]} e2 {[%emt 0:00:03]}
57. g7+ {[%emt 0:00:03]} Ke7 {[%emt 0:00:01]} 58. Re3+ {[%emt 0:00:01]} Ne6+ {
[%emt 0:00:04]} 59. Ke5 {[%emt 0:00:11]} 1/2-1/2

[Event "FIDE World Cup 2013"]
[Site "TromsÃ¸"]
[Date "2013.08.13"]
[Round "1.6"]
[White "Hou, Yifan"]
[Black "Shirov, Alexei"]
[Result "0-1"]
[ECO "B24"]
[WhiteElo "2600"]
[BlackElo "2696"]
[PlyCount "71"]
[EventDate "2013.??.??"]
[EventCountry "NOR"]
[TimeControl "600+10"]

1. e4 {[%emt 0:00:00]} c5 {[%emt 0:00:00]} 2. Nc3 {[%emt 0:00:00]} Nc6 {[%emt
0:00:00]} 3. Bb5 {[%emt 0:00:11]} Nd4 {[%emt 0:00:05]} 4. Nf3 {[%emt 0:00:02]}
g6 {[%emt 0:01:44]} 5. Bc4 {[%emt 0:00:47]} Bg7 {[%emt 0:00:09]} 6. Nxd4 {
[%emt 0:00:14]} cxd4 {[%emt 0:00:01]} 7. Qf3 {[%emt 0:00:01]} Nh6 {[%emt 0:00:
04]} 8. Ne2 {[%emt 0:00:17]} O-O {[%emt 0:00:29]} 9. h3 {[%emt 0:00:45]} e6 {
[%emt 0:00:41]} 10. d3 {[%emt 0:01:35]} f5 {[%emt 0:00:27]} 11. Qg3 {[%emt 0:
00:29]} fxe4 {[%emt 0:00:09]} 12. dxe4 {[%emt 0:00:25]} d5 {[%emt 0:00:02]} 13.
exd5 {[%emt 0:02:32]} exd5 {[%emt 0:01:52]} 14. Bd3 {[%emt 0:00:00]} Nf5 {
[%emt 0:00:38]} 15. Qh2 {[%emt 0:00:01]} Qe7 {[%emt 0:01:09]} 16. Bd2 {[%emt 0:
01:20]} Nd6 {[%emt 0:01:03]} 17. Bb4 {[%emt 0:02:02]} Be5 {[%emt 0:00:02]} 18.
g3 {[%emt 0:00:01]} a5 {[%emt 0:01:08]} 19. Bc5 {[%emt 0:00:01]} Qc7 {[%emt 0:
00:10]} 20. Bxd4 {[%emt 0:01:11]} Bxd4 {[%emt 0:00:28]} 21. Nxd4 {[%emt 0:00:
02]} Qb6 {[%emt 0:00:01]} 22. Ne2 {[%emt 0:00:00]} Qb4+ {[%emt 0:01:07]} 23. c3
{[%emt 0:00:37]} Qxb2 {[%emt 0:00:01]} 24. O-O {[%emt 0:00:01]} Ne4 {[%emt 0:
01:14]} 25. Qg2 {[%emt 0:00:35]} Rxf2 {[%emt 0:01:02]} 26. Rxf2 {[%emt 0:00:19]
} Qxa1+ {[%emt 0:00:01]} 27. Rf1 {[%emt 0:00:00]} Qxa2 {[%emt 0:00:02]} 28. c4
{[%emt 0:00:14]} Qd2 {[%emt 0:00:11]} 29. Qf3 {[%emt 0:00:23]} Bxh3 {[%emt 0:
00:23]} 30. Bxe4 {[%emt 0:00:42]} dxe4 {[%emt 0:00:07]} 31. Qf7+ {[%emt 0:00:
01]} Kh8 {[%emt 0:00:01]} 32. Qf6+ {[%emt 0:00:00]} Kg8 {[%emt 0:00:01]} 33.
Qf7+ {[%emt 0:00:21]} Kh8 {[%emt 0:00:01]} 34. Rf2 {[%emt 0:00:04]} e3 {[%emt
0:00:32]} 35. Qf6+ {[%emt 0:00:24]} Kg8 {[%emt 0:00:02]} 36. Rf3 {[%emt 0:00:
23]} 0-1

[Event "FIDE World Cup 2013"]
[Site "TromsÃ¸"]
[Date "2013.08.13"]
[Round "1.6"]
[White "Kamsky, Gata"]
[Black "Lou, Yiping"]
[Result "1/2-1/2"]
[ECO "A81"]
[WhiteElo "2763"]
[BlackElo "2483"]
[PlyCount "139"]
[EventDate "2013.??.??"]
[EventCountry "NOR"]
[TimeControl "600+10"]

1. d4 {[%emt 0:00:00]} f5 {[%emt 0:00:00]} 2. g3 {[%emt 0:00:07]} Nf6 {[%emt 0:
00:00]} 3. Bg2 {[%emt 0:00:02]} e6 {[%emt 0:00:19]} 4. Nf3 {[%emt 0:00:14]} d5
{[%emt 0:00:02]} 5. O-O {[%emt 0:00:08]} Bd6 {[%emt 0:00:01]} 6. c4 {[%emt 0:
00:13]} O-O {[%emt 0:00:38]} 7. b3 {[%emt 0:00:08]} b6 {[%emt 0:00:04]} 8. Ba3
{[%emt 0:00:16]} Bb7 {[%emt 0:00:08]} 9. Qc1 {[%emt 0:00:41]} Ne4 {[%emt 0:00:
21]} 10. Bxd6 {[%emt 0:02:22]} cxd6 {[%emt 0:00:07]} 11. cxd5 {[%emt 0:00:06]}
exd5 {[%emt 0:00:43]} 12. e3 {[%emt 0:02:33]} g5 {[%emt 0:00:21]} 13. Nc3 {
[%emt 0:00:44]} Nd7 {[%emt 0:00:11]} 14. Qb2 {[%emt 0:00:02]} f4 {[%emt 0:00:
08]} 15. exf4 {[%emt 0:00:10]} gxf4 {[%emt 0:00:02]} 16. Ne2 {[%emt 0:00:18]}
Ba6 {[%emt 0:00:28]} 17. Nxf4 {[%emt 0:00:14]} Rxf4 {[%emt 0:00:15]} 18. gxf4 {
[%emt 0:00:02]} Bxf1 {[%emt 0:00:30]} 19. Rxf1 {[%emt 0:00:17]} Qf6 {[%emt 0:
00:02]} 20. Qc1 {[%emt 0:00:03]} Kh8 {[%emt 0:00:16]} 21. Kh1 {[%emt 0:00:14]}
Rg8 {[%emt 0:00:19]} 22. Bh3 {[%emt 0:00:34]} Nf8 {[%emt 0:00:29]} 23. f5 {
[%emt 0:00:22]} Qf7 {[%emt 0:02:55]} 24. Qh6 {[%emt 0:00:05]} Qe8 {[%emt 0:00:
46]} 25. Qh4 {[%emt 0:00:22]} Qb5 {[%emt 0:00:19]} 26. Rg1 {[%emt 0:00:23]} Qe2
{[%emt 0:00:21]} 27. Rxg8+ {[%emt 0:00:03]} Kxg8 {[%emt 0:00:01]} 28. Kg2 {
[%emt 0:00:09]} Qxa2 {[%emt 0:00:10]} 29. Ng5 {[%emt 0:00:39]} Qe2 {[%emt 0:00:
39]} 30. Ne6 {[%emt 0:01:10]} h5 {[%emt 0:02:14]} 31. Nf4 {[%emt 0:00:21]} Qd2
{[%emt 0:00:43]} 32. f6 {[%emt 0:00:52]} Qxd4 {[%emt 0:00:20]} 33. f7+ {[%emt
0:00:04]} Kxf7 {[%emt 0:00:17]} 34. Qxh5+ {[%emt 0:00:03]} Kg8 {[%emt 0:00:13]}
35. Qxd5+ {[%emt 0:00:15]} Qxd5 {[%emt 0:00:01]} 36. Nxd5 {[%emt 0:00:02]} Ng6
{[%emt 0:00:14]} 37. Bg4 {[%emt 0:00:41]} Kg7 {[%emt 0:00:17]} 38. h3 {[%emt 0:
00:26]} Nf6 {[%emt 0:00:53]} 39. Nc3 {[%emt 0:00:04]} d5 {[%emt 0:00:09]} 40.
Nb5 {[%emt 0:00:12]} a6 {[%emt 0:00:10]} 41. Nd4 {[%emt 0:00:04]} Ne4 {[%emt 0:
00:22]} 42. Kf3 {[%emt 0:00:12]} Kf6 {[%emt 0:00:09]} 43. Ke3 {[%emt 0:00:02]}
a5 {[%emt 0:00:01]} 44. f4 {[%emt 0:00:05]} Nd6 {[%emt 0:00:09]} 45. Bd7 {
[%emt 0:00:11]} Nh4 {[%emt 0:00:15]} 46. Be6 {[%emt 0:00:20]} Ng2+ {[%emt 0:00:
25]} 47. Kf3 {[%emt 0:00:01]} Ne1+ {[%emt 0:00:10]} 48. Ke3 {[%emt 0:00:07]}
Nc2+ {[%emt 0:00:08]} 49. Nxc2 {[%emt 0:00:02]} Kxe6 {[%emt 0:00:01]} 50. Nd4+
{[%emt 0:00:01]} Kf6 {[%emt 0:00:02]} 51. Kd3 {[%emt 0:00:10]} Ne4 {[%emt 0:00:
05]} 52. h4 {[%emt 0:00:06]} Ng3 {[%emt 0:00:07]} 53. Nb5 {[%emt 0:00:10]} Ke6
{[%emt 0:00:10]} 54. Nd4+ {[%emt 0:00:07]} Kd6 {[%emt 0:00:05]} 55. Nb5+ {
[%emt 0:00:17]} Kc5 {[%emt 0:00:02]} 56. Nd4 {[%emt 0:00:02]} b5 {[%emt 0:00:
08]} 57. f5 {[%emt 0:00:02]} Nh5 {[%emt 0:00:02]} 58. Kc3 {[%emt 0:00:13]} Nf6
{[%emt 0:00:09]} 59. Ne6+ {[%emt 0:00:02]} Kd6 {[%emt 0:00:05]} 60. Kd4 {[%emt
0:00:12]} a4 {[%emt 0:00:05]} 61. bxa4 {[%emt 0:00:01]} bxa4 {[%emt 0:00:00]}
62. Nf4 {[%emt 0:00:14]} Kc6 {[%emt 0:00:07]} 63. h5 {[%emt 0:00:09]} Kb5 {
[%emt 0:00:05]} 64. h6 {[%emt 0:00:08]} a3 {[%emt 0:00:14]} 65. Kc3 {[%emt 0:
00:42]} Ka4 {[%emt 0:00:00]} 66. Kc2 {[%emt 0:00:04]} d4 {[%emt 0:00:03]} 67.
Nd3 {[%emt 0:00:17]} Nh7 {[%emt 0:00:04]} 68. Nc1 {[%emt 0:00:09]} Kb4 {[%emt
0:00:03]} 69. Kd3 {[%emt 0:00:02]} Kc5 {[%emt 0:00:20]} 70. Nb3+ {[%emt 0:00:
01]} 1/2-1/2

[Event "FIDE World Cup 2013"]
[Site "TromsÃ¸"]
[Date "2013.08.13"]
[Round "1.6"]
[White "Kryvoruchko, Yuriy"]
[Black "Negi, Parimarjan"]
[Result "1-0"]
[ECO "B22"]
[WhiteElo "2678"]
[BlackElo "2634"]
[PlyCount "67"]
[EventDate "2013.??.??"]
[EventCountry "NOR"]
[TimeControl "600+10"]

1. e4 {[%emt 0:00:00]} c5 {[%emt 0:00:00]} 2. c3 {[%emt 0:00:00]} d5 {[%emt 0:
00:01]} 3. exd5 {[%emt 0:00:00]} Qxd5 {[%emt 0:00:00]} 4. d4 {[%emt 0:00:00]}
Nc6 {[%emt 0:00:01]} 5. Nf3 {[%emt 0:00:00]} Bf5 {[%emt 0:00:01]} 6. Be2 {
[%emt 0:00:04]} cxd4 {[%emt 0:00:44]} 7. cxd4 {[%emt 0:00:02]} Bxb1 {[%emt 0:
00:03]} 8. Rxb1 {[%emt 0:00:09]} e6 {[%emt 0:00:02]} 9. O-O {[%emt 0:00:22]}
Bd6 {[%emt 0:00:01]} 10. Qa4 {[%emt 0:00:54]} Nf6 {[%emt 0:00:17]} 11. Be3 {
[%emt 0:01:47]} O-O {[%emt 0:00:02]} 12. h3 {[%emt 0:00:02]} a6 {[%emt 0:00:22]
} 13. Qc4 {[%emt 0:00:39]} Rac8 {[%emt 0:01:09]} 14. Rbc1 {[%emt 0:00:31]} Qf5
{[%emt 0:01:07]} 15. Qd3 {[%emt 0:00:42]} Qa5 {[%emt 0:00:38]} 16. a3 {[%emt 0:
00:03]} Nd5 {[%emt 0:00:07]} 17. Qe4 {[%emt 0:01:14]} Rce8 {[%emt 0:00:33]} 18.
Bc4 {[%emt 0:01:08]} f5 {[%emt 0:01:23]} 19. Qd3 {[%emt 0:00:06]} Bb8 {[%emt 0:
00:40]} 20. Rfe1 {[%emt 0:00:58]} Qd8 {[%emt 0:00:48]} 21. Bxa6 {[%emt 0:00:44]
} Nxe3 {[%emt 0:01:57]} 22. Qxe3 {[%emt 0:00:04]} Ba7 {[%emt 0:00:54]} 23. Bb5
{[%emt 0:00:28]} Qd5 {[%emt 0:00:48]} 24. Bxc6 bxc6 25. Qc3 {[%emt 0:00:05]} e5
{[%emt 0:00:37]} 26. dxe5 {[%emt 0:00:10]} Kh8 {[%emt 0:00:33]} 27. Qxc6 {
[%emt 0:00:07]} Qb3 {[%emt 0:00:07]} 28. Qc2 {[%emt 0:00:21]} Qb6 {[%emt 0:00:
03]} 29. Red1 {[%emt 0:00:21]} Re6 {[%emt 0:00:10]} 30. Rd7 {[%emt 0:00:20]} h6
{[%emt 0:00:09]} 31. Qd2 {[%emt 0:00:08]} Bb8 {[%emt 0:00:19]} 32. b4 {[%emt 0:
00:17]} f4 {[%emt 0:00:08]} 33. Rd1 {[%emt 0:00:12]} Rg6 {[%emt 0:00:10]} 34.
Rd8 {[%emt 0:00:07]} 1-0

[Event "FIDE World Cup 2013"]
[Site "TromsÃ¸"]
[Date "2013.08.13"]
[Round "1.6"]
[White "Radjabov, Teimour"]
[Black "Cori, Jorge"]
[Result "1/2-1/2"]
[ECO "D85"]
[WhiteElo "2733"]
[BlackElo "2543"]
[PlyCount "59"]
[EventDate "2013.??.??"]
[EventCountry "NOR"]
[TimeControl "600+10"]

1. d4 {[%emt 0:00:00]} Nf6 {[%emt 0:00:00]} 2. c4 {[%emt 0:00:00]} g6 {[%emt 0:
00:00]} 3. Nc3 {[%emt 0:00:00]} d5 {[%emt 0:00:00]} 4. cxd5 {[%emt 0:00:00]}
Nxd5 {[%emt 0:00:00]} 5. e4 {[%emt 0:00:04]} Nxc3 {[%emt 0:00:00]} 6. bxc3 {
[%emt 0:00:01]} Bg7 {[%emt 0:00:01]} 7. Be3 {[%emt 0:00:37]} c5 {[%emt 0:00:37]
} 8. Qd2 {[%emt 0:00:02]} Qa5 {[%emt 0:00:07]} 9. Rc1 {[%emt 0:00:01]} cxd4 {
[%emt 0:00:02]} 10. cxd4 {[%emt 0:00:02]} Qxd2+ {[%emt 0:00:02]} 11. Kxd2 {
[%emt 0:00:25]} O-O {[%emt 0:00:03]} 12. Nf3 {[%emt 0:00:01]} Nc6 {[%emt 0:00:
04]} 13. Bb5 {[%emt 0:00:57]} Rd8 {[%emt 0:00:42]} 14. Bxc6 {[%emt 0:00:33]}
bxc6 {[%emt 0:00:02]} 15. Rhd1 {[%emt 0:00:06]} Rb8 {[%emt 0:02:44]} 16. Ke1 {
[%emt 0:00:01]} Be6 {[%emt 0:02:30]} 17. Ne5 {[%emt 0:01:30]} Bxe5 {[%emt 0:01:
59]} 18. dxe5 {[%emt 0:00:01]} Rxd1+ {[%emt 0:00:43]} 19. Kxd1 {[%emt 0:00:01]}
a5 {[%emt 0:01:26]} 20. a3 {[%emt 0:00:49]} Rb5 {[%emt 0:01:54]} 21. Rxc6 {
[%emt 0:00:33]} Rxe5 {[%emt 0:00:02]} 22. f3 {[%emt 0:00:04]} Rb5 {[%emt 0:00:
08]} 23. Rb6 {[%emt 0:00:02]} Rxb6 {[%emt 0:00:11]} 24. Bxb6 {[%emt 0:00:01]}
a4 {[%emt 0:00:02]} 25. Bc5 {[%emt 0:00:03]} Kf8 {[%emt 0:00:02]} 26. Kd2 {
[%emt 0:00:01]} Ke8 {[%emt 0:00:03]} 27. Ke3 {[%emt 0:00:01]} Kf8 {[%emt 0:00:
02]} 28. Bb4 {[%emt 0:00:02]} Ke8 {[%emt 0:00:02]} 29. Bc5 {[%emt 0:00:02]} Kf8
{[%emt 0:00:02]} 30. Bb4 {[%emt 0:00:01]} 1/2-1/2

[Event "FIDE World Cup 2013"]
[Site "TromsÃ¸"]
[Date "2013.08.13"]
[Round "1.6"]
[White "Shimanov, Aleksandr"]
[Black "Jones, Gawain C B"]
[Result "1-0"]
[ECO "A45"]
[WhiteElo "2664"]
[BlackElo "2643"]
[PlyCount "99"]
[EventDate "2013.??.??"]
[EventCountry "NOR"]
[TimeControl "600+10"]

1. d4 {[%emt 0:00:00]} Nf6 {[%emt 0:00:00]} 2. Bg5 {[%emt 0:00:00]} d5 {[%emt
0:00:00]} 3. Nd2 {[%emt 0:00:00]} c5 {[%emt 0:00:00]} 4. dxc5 {[%emt 0:00:00]}
Nc6 {[%emt 0:00:10]} 5. c3 {[%emt 0:02:04]} a5 {[%emt 0:00:16]} 6. a4 {[%emt 0:
00:49]} e5 {[%emt 0:00:59]} 7. Nb3 {[%emt 0:00:04]} h6 {[%emt 0:01:29]} 8. Bxf6
{[%emt 0:00:17]} Qxf6 {[%emt 0:00:01]} 9. e3 {[%emt 0:00:08]} Be6 {[%emt 0:00:
41]} 10. Nf3 {[%emt 0:00:18]} Be7 {[%emt 0:00:33]} 11. Bb5 {[%emt 0:00:14]} O-O
{[%emt 0:00:03]} 12. O-O {[%emt 0:00:07]} Rfd8 {[%emt 0:00:12]} 13. Nfd2 {
[%emt 0:00:59]} Qg6 {[%emt 0:01:13]} 14. Kh1 {[%emt 0:00:03]} Bf6 {[%emt 0:00:
41]} 15. Qe2 {[%emt 0:00:54]} d4 {[%emt 0:00:50]} 16. e4 {[%emt 0:00:25]} Bg5 {
[%emt 0:00:56]} 17. Rfd1 {[%emt 0:01:01]} Bf4 {[%emt 0:00:50]} 18. Bc4 {[%emt
0:00:38]} Bg4 {[%emt 0:01:16]} 19. f3 {[%emt 0:00:01]} Bd7 {[%emt 0:00:11]} 20.
Bd5 {[%emt 0:00:20]} Qh5 {[%emt 0:01:41]} 21. g4 {[%emt 0:00:21]} d3 {[%emt 0:
00:28]} 22. gxh5 dxe2 23. Re1 {[%emt 0:01:47]} Be6 {[%emt 0:00:37]} 24. Bxe6 {
[%emt 0:00:05]} fxe6 {[%emt 0:00:04]} 25. Rxe2 {[%emt 0:00:03]} Rd3 {[%emt 0:
00:04]} 26. Kg2 {[%emt 0:00:13]} Kh7 {[%emt 0:00:30]} 27. Nc4 {[%emt 0:00:45]}
g6 {[%emt 0:00:03]} 28. hxg6+ Kxg6 29. Ree1 {[%emt 0:00:50]} Kf6 {[%emt 0:00:
36]} 30. Rad1 {[%emt 0:00:57]} Rg8+ {[%emt 0:00:02]} 31. Kf2 {[%emt 0:00:25]}
Rxd1 {[%emt 0:00:01]} 32. Rxd1 {[%emt 0:00:00]} Bxh2 {[%emt 0:00:01]} 33. Nbxa5
{[%emt 0:00:10]} Bg3+ {[%emt 0:00:02]} 34. Ke2 {[%emt 0:00:37]} Bf4 {[%emt 0:
00:52]} 35. Nxc6 {[%emt 0:00:57]} bxc6 36. a5 h5 {[%emt 0:00:12]} 37. Rh1 {
[%emt 0:00:06]} Rh8 {[%emt 0:00:14]} 38. a6 Ra8 39. Rxh5 Rxa6 40. Rh7 {[%emt 0:
00:31]} Ra4 {[%emt 0:00:13]} 41. Kd3 {[%emt 0:00:04]} Ra1 {[%emt 0:00:15]} 42.
Rc7 {[%emt 0:00:05]} Rf1 {[%emt 0:00:22]} 43. Ke2 {[%emt 0:00:04]} Rc1 {[%emt
0:00:01]} 44. Rxc6 {[%emt 0:00:19]} Ke7 {[%emt 0:00:05]} 45. Rc7+ {[%emt 0:00:
05]} Kd8 {[%emt 0:00:01]} 46. Rh7 {[%emt 0:00:09]} Rc2+ {[%emt 0:00:01]} 47.
Kd3 {[%emt 0:00:07]} Rf2 {[%emt 0:00:02]} 48. c6 {[%emt 0:00:05]} Rxf3+ {[%emt
0:00:20]} 49. Ke2 {[%emt 0:00:06]} Rg3 {[%emt 0:00:02]} 50. c7+ {[%emt 0:00:04]
} 1-0

[Event "FIDE World Cup 2013"]
[Site "TromsÃ¸"]
[Date "2013.08.13"]
[Round "1.6"]
[White "Swiercz, Dariusz"]
[Black "Zvjaginsev, Vadim"]
[Result "1/2-1/2"]
[ECO "B36"]
[WhiteElo "2650"]
[BlackElo "2659"]
[PlyCount "98"]
[EventDate "2013.??.??"]
[EventCountry "NOR"]
[TimeControl "600+10"]

1. e4 {[%emt 0:00:00]} c5 {[%emt 0:00:00]} 2. Nf3 {[%emt 0:00:00]} Nc6 {[%emt
0:00:00]} 3. d4 {[%emt 0:00:00]} cxd4 {[%emt 0:00:00]} 4. Nxd4 {[%emt 0:00:00]}
g6 {[%emt 0:00:00]} 5. c4 {[%emt 0:00:02]} Nf6 {[%emt 0:00:00]} 6. Nc3 {[%emt
0:00:02]} d6 {[%emt 0:00:00]} 7. Be2 {[%emt 0:00:03]} Nxd4 {[%emt 0:00:02]} 8.
Qxd4 {[%emt 0:00:02]} Bg7 {[%emt 0:00:01]} 9. Be3 {[%emt 0:00:06]} O-O {[%emt
0:00:05]} 10. Qd2 {[%emt 0:00:01]} Qa5 {[%emt 0:00:09]} 11. f3 {[%emt 0:00:26]}
Be6 {[%emt 0:00:14]} 12. Rc1 {[%emt 0:00:05]} Rfc8 {[%emt 0:00:23]} 13. b3 {
[%emt 0:00:02]} Rab8 {[%emt 0:01:35]} 14. Nb5 {[%emt 0:03:04]} Qxd2+ {[%emt 0:
00:10]} 15. Kxd2 {[%emt 0:00:01]} a6 {[%emt 0:00:04]} 16. Nd4 {[%emt 0:00:02]}
Bd7 {[%emt 0:00:17]} 17. Rhd1 {[%emt 0:00:22]} Kf8 {[%emt 0:00:32]} 18. Ke1 {
[%emt 0:02:33]} Be8 {[%emt 0:00:16]} 19. Nc2 {[%emt 0:00:32]} Nd7 {[%emt 0:02:
21]} 20. Nb4 {[%emt 0:00:03]} Nc5 {[%emt 0:01:03]} 21. Nd5 {[%emt 0:00:38]} b6
{[%emt 0:01:12]} 22. b4 {[%emt 0:01:20]} Nd7 {[%emt 0:01:16]} 23. Bg5 {[%emt 0:
00:39]} f6 {[%emt 0:00:11]} 24. Be3 {[%emt 0:00:08]} e6 {[%emt 0:00:35]} 25.
Nf4 {[%emt 0:01:45]} Ke7 {[%emt 0:00:03]} 26. Nd3 {[%emt 0:00:01]} f5 {[%emt 0:
01:18]} 27. exf5 {[%emt 0:00:07]} gxf5 {[%emt 0:00:01]} 28. c5 {[%emt 0:01:07]}
bxc5 {[%emt 0:00:42]} 29. bxc5 {[%emt 0:00:01]} dxc5 {[%emt 0:00:39]} 30. Nxc5
{[%emt 0:00:03]} Nxc5 {[%emt 0:00:22]} 31. Bxc5+ {[%emt 0:00:50]} Kf7 {[%emt 0:
00:02]} 32. Bxa6 {[%emt 0:00:24]} Rc6 {[%emt 0:00:07]} 33. Be2 {[%emt 0:00:34]}
Ra8 {[%emt 0:00:39]} 34. Bb5 {[%emt 0:00:21]} Rc7 {[%emt 0:00:21]} 35. a4 {
[%emt 0:00:12]} Bh6 {[%emt 0:00:26]} 36. Be3 {[%emt 0:00:11]} Rxc1 {[%emt 0:00:
27]} 37. Bxc1 {[%emt 0:00:02]} Bf8 {[%emt 0:00:15]} 38. Bd2 {[%emt 0:00:13]}
Bc5 {[%emt 0:00:17]} 39. Rc1 {[%emt 0:00:07]} Bd6 {[%emt 0:00:03]} 40. g3 {
[%emt 0:00:16]} Bxb5 {[%emt 0:00:16]} 41. axb5 {[%emt 0:00:01]} Ra3 {[%emt 0:
00:04]} 42. Rc6 {[%emt 0:00:19]} Ke7 {[%emt 0:00:01]} 43. Ke2 {[%emt 0:00:10]}
Rb3 {[%emt 0:00:05]} 44. Ra6 {[%emt 0:00:12]} Bc5 {[%emt 0:00:29]} 45. Rc6 {
[%emt 0:00:05]} Bd6 {[%emt 0:00:01]} 46. Ra6 {[%emt 0:00:01]} Bc5 {[%emt 0:00:
01]} 47. Ra4 {[%emt 0:00:18]} Kf7 {[%emt 0:00:16]} 48. Rh4 {[%emt 0:00:12]} Kg7
{[%emt 0:00:13]} 49. Rc4 {[%emt 0:00:14]} Rxb5 {[%emt 0:00:06]} 1/2-1/2